[Event "Catalan Youth Championship 2024"]
[Site "Cambrils"]
[Date "2024.03.25"]
[Round "4.18"]
[White "Creixans Comerma, Pol"]
[Black "Garcia Caro, Juan Alber"]
[Result "0-1"]
[ECO "B22"]
[WhiteElo "1981"]
[BlackElo "2128"]
[Annotator "RC"]
[PlyCount "110"]
[EventDate "2024.03.13"]
[EventType "swiss"]
[EventCountry "ESP"]
[SourceTitle "playchess.com"]
[Source "ChessBase"]
[SourceQuality "1"]
[TimeControl "5400+30"]

1. e4 {[%emt 1:31:00]} e6 {[%emt 1:31:00]} 2. d4 {[%emt 0:00:30]} c5 {[%emt 0:00:30]} 3. c3 {[%emt 0:00:30]} Nf6 {[%emt 0:00:30]} 4. Bd3 {[%emt 0:00:30]} Nc6 {[%emt 0:00:30]} 5. Nf3 {[%emt 0:00:30]} cxd4 {[%emt 0:00:30]} 6. cxd4 {[%emt 0:00:30]} Nb4 {[%emt 0:00:30]} 7. Nc3 {[%emt 0:00:30]} Nxd3+ {[%emt 0:00:30]} 8. Qxd3 {[%emt 0:00:30]} b5 {[%emt 0:00:30]} 9. Nxb5 {[%emt 0:00:30]} Ba6 {[%emt 0:00:30]} 10. O-O {[%emt 0:00:30]} Nxe4 {[%emt 0:00:30]} 11. Bf4 {[%emt 0:00:30]} Bxb5 {[%emt 0:00:30]} 12. Qxb5 {[%emt 0:00:30]} Qb6 {[%emt 0:00:30]} 13. Qxb6 {[%emt 0:00:30]} axb6 {[%emt 0:00:30]} 14. Rfc1 {[%emt 0:00:30]} Nf6 {[%emt 0:00:30]} 15. Ne5 {[%emt 0:00:30]} Nd5 {[%emt 0:00:30]} 16. Bg3 {[%emt 0:00:30]} Be7 {[%emt 0:00:30]} 17. Nc4 {[%emt 0:00:30]} O-O {[%emt 0:00:30]} 18. Bd6 {[%emt 0:00:30]} Bxd6 {[%emt 0:00:30]} 19. Nxd6 {[%emt 0:00:30]} Rfb8 {[%emt 0:00:30]} 20. a3 {[%emt 0:00:30]} Kf8 {[%emt 0:00:30]} 21. Rc2 {[%emt 0:00:30]} Ke7 {[%emt 0:00:30]} 22. Nb5 {[%emt 0:00:30]} Ra5 {[%emt 0:00:30]} 23. Nc3 {[%emt 0:00:30]} Rba8 {[%emt 0:00:30]} 24. Nxd5+ {[%emt 0:00:30]} Rxd5 {[%emt 0:00:30]} 25. Rc4 {[%emt 0:00:30]} b5 {[%emt 0:00:30]} 26. Rc5 {[%emt 0:00:30]} Rxc5 {[%emt 0:00:30]} 27. dxc5 {[%emt 0:00:30]} b4 {[%emt 0:00:30]} 28. Kf1 {[%emt 0:00:30]} Ra5 {[%emt 0:00:30]} 29. Rc1 {[%emt 0:00:30]} bxa3 {[%emt 0:00:30]} 30. bxa3 {[%emt 0:00:30]} Rxa3 {[%emt 0:00:30]} 31. c6 {[%emt 0:00:30]} dxc6 {[%emt 0:00:30]} 32. Rxc6 {[%emt 0:00:30]} Ra1+ {[%emt 0:00:30]} 33. Ke2 {[%emt 0:00:30]} Rh1 {[%emt 0:00:30]} 34. h3 {[%emt 0:00:30]} Kf6 {[%emt 0:00:30]} 35. Rc7 {[%emt 0:00:30]} h5 {[%emt 0:00:30]} 36. Kf3 {[%emt 0:00:30]} g5 {[%emt 0:00:30]} 37. Ra7 {[%emt 0:00:30]} Kg6 {[%emt 0:00:30]} 38. Re7 {[%emt 0:00:30]} h4 {[%emt 0:00:30]} 39. Ra7 {[%emt 0:00:30]} Rg1 {[%emt 0:00:30]} 40. Re7 {[%emt 0:00:30]} Ra1 {[%emt 0:00:30]} 41. Rb7 {[%emt 0:00:30]} f6 {[%emt 0:00:30]} 42. Rb8 {[%emt 0:00:30]} Kf5 {[%emt 0:00:30]} 43. Rb5+ {[%emt 0:00:30]} e5 {[%emt 0:00:30]} 44. Rb3 {[%emt 0:00:30]} e4+ {[%emt 0:00:30]} 45. Ke2 {[%emt 0:00:30]} Rg1 {[%emt 0:00:30]} 46. g4+ {[%emt 0:00:30]} hxg3 {[%emt 0:00:30]} 47. fxg3 {[%emt 0:00:30]} Rg2+ {[%emt 0:00:30]} 48. Kf1 {[%emt 0:00:30]} Rh2 {[%emt 0:00:30]} 49. Rb5+ {[%emt 0:00:30]} Kg6 {[%emt 0:00:30]} 50. Rb4 {[%emt 0:00:30]} f5 {[%emt 0:00:30]} 51. Rb6+ {[%emt 0:00:30]} Kg7 {[%emt 0:00:30]} 52. Rb7+ {[%emt 0:00:30]} Kg6 {[%emt 0:00:30]} 53. Rb6+ {[%emt 0:00:30]} Kh5 {[%emt 0:00:30]} 54. Rf6 {[%emt 0:00:30]} Rxh3 {[%emt 0:00:30]} 55. Kg2 {[%emt 0:00:30]} Kg4 {[%emt 0:00:30]} 0-1

[Event "Catalan Youth Championship 2024"]
[Site "Cambrils"]
[Date "2024.03.25"]
[Round "4.19"]
[White "Valle Luis, Leo"]
[Black "Vasilev, Andrei"]
[Result "1-0"]
[ECO "B12"]
[WhiteElo "2230"]
[BlackElo "1937"]
[Annotator "RC"]
[PlyCount "79"]
[EventDate "2024.03.13"]
[EventType "swiss"]
[EventCountry "ESP"]
[SourceTitle "playchess.com"]
[Source "ChessBase"]
[SourceQuality "1"]
[TimeControl "5400+30"]

1. e4 {[%emt 0:00:02]} c6 {[%emt 0:00:12]} 2. d4 {[%emt 0:00:15]} d5 {[%emt 0:00:15]} 3. e5 {[%emt 0:00:07]} Bf5 {[%emt 0:00:29]} 4. h4 {[%emt 1:32:06]} h5 {[%emt 1:31:34]} 5. Bd3 {[%emt 0:00:00]} Bxd3 {[%emt 0:00:00]} 6. Qxd3 {[%emt 0:00:00]} Qa5+ {[%emt 0:00:00]} 7. Nd2 {[%emt 0:01:30]} e6 {[%emt 0:00:00]} 8. Ngf3 {[%emt 0:00:30]} Nh6 {[%emt 0:00:00]} 9. O-O {[%emt 0:00:00]} Nf5 {[%emt 0:00:00]} 10. a4 {[%emt 0:01:00]} Be7 {[%emt 0:00:00]} 11. Nb3 {[%emt 0:00:30]} Qa6 {[%emt 0:00:00]} 12. Qd1 {[%emt 0:00:30]} Nd7 {[%emt 0:00:00]} 13. g3 {[%emt 0:00:00]} Rc8 {[%emt 0:00:00]} 14. c3 {[%emt 0:01:00]} g6 {[%emt 0:00:00]} 15. Re1 {[%emt 0:00:30]} Kf8 {[%emt 0:00:00]} 16. Be3 {[%emt 0:00:00]} Kg7 {[%emt 0:00:00]} 17. Nc1 {[%emt 0:01:00]} c5 {[%emt 0:06:30]} 18. dxc5 {[%emt 0:00:30]} Bxc5 {[%emt 0:00:30]} 19. Bd4 {[%emt 0:00:30]} Bxd4 {[%emt 0:00:00]} 20. Nxd4 {[%emt 0:00:00]} Nxd4 {[%emt 0:00:00]} 21. cxd4 {[%emt 0:01:00]} Qc4 {[%emt 0:00:00]} 22. Re2 {[%emt 0:00:00]} Rc7 {[%emt 0:00:00]} 23. Rd2 {[%emt 0:00:00]} Rhc8 {[%emt 0:02:30]} 24. Ne2 {[%emt 0:01:30]} a6 {[%emt 0:00:30]} 25. a5 {[%emt 0:00:30]} Qb4 {[%emt 0:00:30]} 26. Ra4 {[%emt 0:00:30]} Qe7 {[%emt 0:00:30]} 27. Qb3 {[%emt 0:00:30]} Nb8 {[%emt 0:00:00]} 28. Kg2 {[%emt 0:00:30]} Rc4 {[%emt 0:01:00]} 29. Ra3 {[%emt 0:00:30]} Qb4 {[%emt 0:00:00]} 30. Qd1 {[%emt 0:00:30]} Nc6 {[%emt 0:01:00]} 31. Rb3 {[%emt 0:00:00]} Qe7 {[%emt 0:00:30]} 32. Rf3 {[%emt 0:01:00]} Nxa5 {[%emt 0:00:00]} 33. Rf6 {[%emt 0:00:30]} Qb4 {[%emt 0:01:00]} 34. Nf4 {[%emt 0:00:00]} Rh8 {[%emt 0:00:00]} 35. Qf3 {[%emt 0:01:00]} Qxd2 {[%emt 0:00:00]} 36. Nxh5+ {[%emt 0:00:30]} Rxh5 {[%emt 0:00:54]} 37. Rxf7+ {[%emt 0:00:00]} Kh6 {[%emt 0:00:12]} 38. Qf6 {[%emt 0:00:00]} Qxf2+ {[%emt 0:00:52]} 39. Qxf2 {[%emt 0:00:00]} Rf5 {[%emt 0:00:24]} 40. Qd2+ {[%emt 0:02:00]} 1-0

[Event "Catalan Youth Championship 2024"]
[Site "Cambrils"]
[Date "2024.03.25"]
[Round "4.20"]
[White "Serrahima Susany, Ramon"]
[Black "Porta Isant, Lluis"]
[Result "1/2-1/2"]
[ECO "C11"]
[WhiteElo "2029"]
[BlackElo "2115"]
[Annotator "RC"]
[PlyCount "173"]
[EventDate "2024.03.13"]
[EventType "swiss"]
[EventCountry "ESP"]
[SourceTitle "playchess.com"]
[Source "ChessBase"]
[SourceQuality "1"]
[TimeControl "5400+30"]

1. e4 {[%emt 0:00:03]} e6 {[%emt 0:03:00]} 2. d4 {[%emt 0:00:06]} d5 {[%emt 0:00:08]} 3. Nc3 {[%emt 0:00:04]} Nf6 {[%emt 0:00:11]} 4. e5 {[%emt 0:00:06]} Nfd7 {[%emt 0:00:04]} 5. f4 {[%emt 0:00:09]} c5 {[%emt 0:00:06]} 6. Nf3 {[%emt 0:00:08]} Nc6 {[%emt 0:00:07]} 7. Be3 {[%emt 0:00:12]} Qb6 {[%emt 0:01:19]} 8. Na4 {[%emt 0:03:49]} Qa5+ {[%emt 0:01:46]} 9. c3 {[%emt 0:00:52]} cxd4 {[%emt 0:05:45]} 10. b4 {[%emt 0:00:59]} Qd8 {[%emt 0:08:17]} 11. Nxd4 {[%emt 0:00:20]} a5 {[%emt 0:16:01]} 12. b5 {[%emt 0:01:17]} Nxd4 {[%emt 0:00:48]} 13. Bxd4 {[%emt 0:00:25]} b6 {[%emt 0:09:01]} 14. Bd3 {[%emt 0:02:58]} Nc5 {[%emt 0:00:47]} 15. Nxc5 {[%emt 0:00:20]} bxc5 {[%emt 0:04:18]} 16. Be3 {[%emt 0:00:13]} d4 {[%emt 0:02:09]} 17. Be4 {[%emt 0:01:50]} Rb8 {[%emt 0:02:29]} 18. cxd4 {[%emt 0:00:29]} cxd4 {[%emt 0:00:11]} 19. Qxd4 {[%emt 0:00:32]} Bb4+ {[%emt 0:00:33]} 20. Kf2 {[%emt 0:00:29]} Qxd4 {[%emt 0:43:30]} 21. Bxd4 {[%emt 0:00:23]} O-O {[%emt 0:00:00]} 22. Bc6 {[%emt 0:01:30]} Bd7 {[%emt 0:00:00]} 23. Bxd7 {[%emt 0:02:06]} Rbd8 {[%emt 0:00:00]} 24. a3 {[%emt 0:00:42]} Be7 {[%emt 0:00:00]} 25. Bb6 {[%emt 0:02:06]} Rxd7 {[%emt 0:00:00]} 26. Bxa5 {[%emt 0:03:02]} f6 {[%emt 0:00:00]} 27. exf6 {[%emt 0:03:15]} Rxf6 {[%emt 0:00:00]} 28. g3 {[%emt 0:01:04]} g5 {[%emt 0:00:00]} 29. Rhd1 {[%emt 0:00:31]} Rb7 {[%emt 0:00:00]} 30. Bd8 {[%emt 0:03:07]} gxf4 {[%emt 0:00:00]} 31. gxf4 {[%emt 0:00:56]} Bc5+ {[%emt 0:00:00]} 32. Kf3 {[%emt 0:01:19]} Rf5 {[%emt 0:00:00]} 33. b6 {[%emt 0:03:38]} e5 {[%emt 0:00:00]} 34. Ke4 {[%emt 0:00:48]} Rxf4+ {[%emt 0:00:00]} 35. Kd5 {[%emt 0:01:05]} Bd4 {[%emt 0:00:00]} 36. Kc6 {[%emt 0:01:24]} Rb8 {[%emt 0:00:00]} 37. Rxd4 {[%emt 0:01:47]} exd4 {[%emt 0:00:00]} 38. Kc7 {[%emt 0:00:26]} Ra8 {[%emt 0:00:00]} 39. Re1 {[%emt 0:20:54]} Rf7+ {[%emt 0:00:00]} 40. Re7 {[%emt 0:01:00]} Rxa3 {[%emt 0:04:11]} 41. b7 {[%emt 0:00:05]} Rc3+ {[%emt 0:00:29]} 42. Kd7 {[%emt 0:02:26]} Rb3 {[%emt 0:00:20]} 43. Kc8 {[%emt 0:00:19]} Rf8 {[%emt 0:00:25]} 44. Rd7 {[%emt 0:01:26]} Rc3+ {[%emt 0:06:35]} 45. Kb8 {[%emt 0:08:20]} d3 {[%emt 0:00:00]} 46. Ka7 {[%emt 0:00:23]} Ra3+ {[%emt 0:00:00]} 47. Kb6 {[%emt 0:00:32]} Rb3+ {[%emt 0:00:00]} 48. Ka7 {[%emt 0:04:12]} Rf4 {[%emt 0:00:00]} 49. Ba5 {[%emt 0:02:24]} Ra4 {[%emt 0:00:02]} 50. Ka6 {[%emt 0:04:14]} d2 {[%emt 0:00:33]} 51. Rxd2 {[%emt 0:00:08]} Rxa5+ {[%emt 0:00:07]} 52. Kxa5 {[%emt 0:00:07]} Rxb7 {[%emt 0:00:12]} 53. Rf2 {[%emt 0:00:35]} h6 {[%emt 0:00:23]} 54. Ka6 {[%emt 0:00:15]} Rb1 {[%emt 0:00:12]} 55. Rg2+ {[%emt 0:00:25]} Kh7 {[%emt 0:00:17]} 56. Ka5 {[%emt 0:00:20]} h5 {[%emt 0:00:05]} 57. Ka4 {[%emt 0:00:21]} Kh6 {[%emt 0:00:05]} 58. Ka3 {[%emt 0:00:38]} h4 {[%emt 0:00:11]} 59. Rb2 {[%emt 0:01:35]} Rc1 {[%emt 0:00:47]} 60. Kb3 {[%emt 0:00:11]} Kg5 {[%emt 0:01:06]} 61. Rc2 {[%emt 0:00:27]} Rd1 {[%emt 0:00:14]} 62. Kc3 {[%emt 0:00:38]} Kg4 {[%emt 0:01:53]} 63. Rd2 {[%emt 0:00:14]} Re1 {[%emt 0:00:08]} 64. Kd3 {[%emt 0:00:06]} Kf3 {[%emt 0:00:16]} 65. Rb2 {[%emt 0:02:31]} h3 {[%emt 0:00:33]} 66. Rd2 {[%emt 0:04:08]} Re8 {[%emt 0:02:01]} 67. Kc2 {[%emt 0:00:44]} Rg8 {[%emt 0:01:02]} 68. Kd3 {[%emt 0:02:25]} Rg2 {[%emt 0:00:38]} 69. Kc3 {[%emt 0:00:16]} Rg6 {[%emt 0:01:02]} 70. Kd3 {[%emt 0:00:23]} Rg1 {[%emt 0:00:20]} 71. Kc2 {[%emt 0:00:14]} Ra1 {[%emt 0:00:42]} 72. Kd3 {[%emt 0:00:24]} Rc1 {[%emt 0:00:16]} 73. Kd4 {[%emt 0:00:19]} Rc7 {[%emt 0:00:49]} 74. Kd3 {[%emt 0:00:08]} Rd7+ {[%emt 0:00:29]} 75. Kc3 {[%emt 0:00:12]} Rg7 {[%emt 0:00:22]} 76. Kd3 {[%emt 0:00:07]} Rg4 {[%emt 0:00:35]} 77. Kc3 {[%emt 0:00:13]} Rh4 {[%emt 0:00:23]} 78. Kd3 {[%emt 0:00:09]} Rh6 {[%emt 0:00:09]} 79. Kc3 {[%emt 0:00:06]} Ke3 {[%emt 0:00:06]} 80. Kc2 {[%emt 0:01:51]} Rc6+ {[%emt 0:00:25]} 81. Kd1 {[%emt 0:00:09]} Rg6 {[%emt 0:00:39]} 82. Re2+ {[%emt 0:00:26]} Kf3 {[%emt 0:00:08]} 83. Rd2 {[%emt 0:03:27]} Rg2 {[%emt 0:00:45]} 84. Rd3+ {[%emt 0:00:16]} Kg4 {[%emt 0:00:15]} 85. Rd4+ {[%emt 0:00:07]} Kg5 {[%emt 0:00:45]} 86. Ke1 {[%emt 0:02:59]} Rxh2 {[%emt 0:00:11]} 87. Kf1 {[%emt 0:00:04]} 1/2-1/2

[Event "Catalan Youth Championship 2024"]
[Site "Cambrils"]
[Date "2024.03.25"]
[Round "4.21"]
[White "Gomez Navais, Marcal"]
[Black "Serrano Batova, Vicent"]
[Result "1/2-1/2"]
[ECO "B35"]
[WhiteElo "2086"]
[BlackElo "2104"]
[Annotator "RC"]
[PlyCount "52"]
[EventDate "2024.03.13"]
[EventType "swiss"]
[EventCountry "ESP"]
[SourceTitle "playchess.com"]
[Source "ChessBase"]
[SourceQuality "1"]
[TimeControl "5400+30"]

1. e4 {[%emt 0:00:02]} c5 {[%emt 0:00:01]} 2. Nf3 {[%emt 0:00:04]} Nc6 {[%emt 0:00:02]} 3. d4 {[%emt 0:00:02]} cxd4 {[%emt 0:00:03]} 4. Nxd4 {[%emt 0:00:03]} g6 {[%emt 0:00:04]} 5. Nc3 {[%emt 0:00:02]} Bg7 {[%emt 0:00:03]} 6. Be3 {[%emt 0:00:04]} Nf6 {[%emt 0:00:03]} 7. Bc4 {[%emt 0:00:03]} O-O {[%emt 0:00:05]} 8. Bb3 {[%emt 0:00:02]} d5 {[%emt 0:00:05]} 9. exd5 {[%emt 0:01:27]} Na5 {[%emt 0:00:04]} 10. Qf3 {[%emt 0:00:56]} Bg4 {[%emt 0:00:02]} 11. Qg3 {[%emt 0:09:38]} Nxb3 {[%emt 0:00:03]} 12. axb3 {[%emt 0:03:21]} Bh5 {[%emt 0:00:02]} 13. d6 {[%emt 0:03:42]} Ng4 {[%emt 0:00:47]} 14. dxe7 {[%emt 0:12:07]} Qxe7 {[%emt 0:00:21]} 15. O-O {[%emt 0:02:38]} Be5 {[%emt 0:00:23]} 16. f4 {[%emt 0:01:24]} Bg7 {[%emt 0:04:34]} 17. Bf2 {[%emt 0:03:58]} Rfd8 {[%emt 0:17:34]} 18. Nf3 {[%emt 0:12:32]} Nxf2 {[%emt 0:08:44]} 19. Qxf2 {[%emt 0:05:08]} Bxf3 {[%emt 0:00:24]} 20. Qxf3 {[%emt 0:00:15]} Rd2 {[%emt 0:02:48]} 21. f5 {[%emt 0:09:13]} Qc5+ {[%emt 0:19:30]} 22. Kh1 {[%emt 0:00:06]} Qc6 {[%emt 0:00:19]} 23. fxg6 {[%emt 0:08:51]} fxg6 {[%emt 0:01:28]} 24. Qxc6 {[%emt 0:08:57]} bxc6 {[%emt 0:00:07]} 25. Rac1 {[%emt 0:05:27]} Rad8 {[%emt 0:08:21]} 26. Ne4 {[%emt 0:00:57]} Re2 {[%emt 0:10:46]} 1/2-1/2

[Event "Catalan Youth Championship 2024"]
[Site "Cambrils"]
[Date "2024.03.25"]
[Round "4.22"]
[White "Niubo Garcia, Adai"]
[Black "Martin Barcelo, Carles"]
[Result "0-1"]
[ECO "B13"]
[WhiteElo "1823"]
[BlackElo "2234"]
[Annotator "RC"]
[PlyCount "44"]
[EventDate "2024.03.13"]
[EventType "swiss"]
[EventCountry "ESP"]
[SourceTitle "playchess.com"]
[Source "ChessBase"]
[SourceQuality "1"]
[TimeControl "5400+30"]

1. e4 {[%emt 0:00:06]} c6 {[%emt 0:00:42]} 2. d4 {[%emt 0:01:24]} d5 {[%emt 0:00:11]} 3. exd5 {[%emt 0:01:50]} cxd5 {[%emt 0:00:09]} 4. Nf3 {[%emt 0:02:35]} Nc6 {[%emt 0:00:56]} 5. c3 {[%emt 0:03:29]} Qc7 {[%emt 0:04:36]} 6. Bd3 {[%emt 0:04:24]} Bg4 {[%emt 0:00:50]} 7. O-O {[%emt 0:06:37]} e6 {[%emt 0:00:44]} 8. Nbd2 {[%emt 0:05:46]} Bd6 {[%emt 0:00:42]} 9. Re1 {[%emt 0:06:51]} Bxh2+ {[%emt 0:02:25]} 10. Kh1 {[%emt 0:01:22]} Bf4 {[%emt 0:09:48]} 11. Nf1 {[%emt 0:04:58]} Nge7 {[%emt 0:04:32]} 12. Ne3 {[%emt 0:02:30]} Bh5 {[%emt 0:01:02]} 13. g4 {[%emt 0:09:16]} Bg6 {[%emt 0:14:59]} 14. Ng2 {[%emt 0:05:21]} Bxc1 {[%emt 0:08:29]} 15. Rxc1 {[%emt 0:00:15]} O-O {[%emt 0:07:36]} 16. Ne5 {[%emt 0:05:46]} Nxe5 {[%emt 0:00:44]} 17. dxe5 {[%emt 0:36:30]} Bxd3 {[%emt 0:13:26]} 18. Qxd3 {[%emt 0:00:00]} Ng6 {[%emt 0:00:33]} 19. f4 {[%emt 0:00:00]} f6 {[%emt 0:03:38]} 20. exf6 {[%emt 0:00:00]} Rxf6 {[%emt 0:00:45]} 21. Rxe6 {[%emt 0:00:00]} Rxe6 {[%emt 0:02:35]} 22. f5 {[%emt 0:00:00]} Nf4 {[%emt 0:00:37]} 0-1

[Event "Catalan Youth Championship 2024"]
[Site "Cambrils"]
[Date "2024.03.25"]
[Round "4.23"]
[White "Olcina Monells, Jordi"]
[Black "Rocamora Martorell, Ferran"]
[Result "1/2-1/2"]
[ECO "C43"]
[WhiteElo "1929"]
[BlackElo "2118"]
[Annotator "RC"]
[PlyCount "68"]
[EventDate "2024.03.13"]
[EventType "swiss"]
[EventCountry "ESP"]
[SourceTitle "playchess.com"]
[Source "ChessBase"]
[SourceQuality "1"]
[TimeControl "5400+30"]

1. e4 {[%emt 0:00:17]} e5 {[%emt 0:00:09]} 2. Nf3 {[%emt 0:00:39]} Nf6 {[%emt 0:00:06]} 3. d4 {[%emt 0:00:14]} Nxe4 {[%emt 0:00:23]} 4. Bd3 {[%emt 0:00:15]} d5 {[%emt 0:00:38]} 5. Nxe5 {[%emt 1:31:35]} Nd7 {[%emt 0:01:13]} 6. Nc3 {[%emt 0:00:30]} Nxe5 {[%emt 1:31:01]} 7. dxe5 {[%emt 0:00:30]} Nxc3 {[%emt 0:00:30]} 8. bxc3 {[%emt 0:00:30]} h5 {[%emt 0:00:30]} 9. Be3 {[%emt 0:00:30]} c6 {[%emt 0:00:30]} 10. O-O {[%emt 0:00:30]} Qa5 {[%emt 0:00:30]} 11. f4 {[%emt 0:00:30]} Bc5 {[%emt 0:00:30]} 12. Qe1 {[%emt 0:00:30]} Bxe3+ {[%emt 0:00:00]} 13. Qxe3 {[%emt 0:00:00]} Qb6 {[%emt 0:01:00]} 14. Qd4 {[%emt 0:01:00]} c5 {[%emt 0:00:00]} 15. Qf2 {[%emt 0:00:00]} c4 {[%emt 0:01:00]} 16. Be2 {[%emt 0:01:00]} g6 {[%emt 0:00:30]} 17. Bf3 {[%emt 0:00:00]} Be6 {[%emt 0:00:30]} 18. Rfd1 {[%emt 0:01:00]} Qxf2+ {[%emt 0:00:00]} 19. Kxf2 {[%emt 0:00:00]} O-O-O {[%emt 0:01:00]} 20. h3 {[%emt 0:01:00]} Kc7 {[%emt 0:00:30]} 21. Rd4 {[%emt 0:00:30]} b5 {[%emt 0:00:30]} 22. Rad1 {[%emt 0:00:30]} Kc6 {[%emt 0:00:30]} 23. Kg1 {[%emt 0:00:30]} a5 {[%emt 0:00:30]} 24. a4 {[%emt 0:00:30]} Rd7 {[%emt 0:00:30]} 25. axb5+ {[%emt 0:00:30]} Kc5 {[%emt 0:00:30]} 26. Be2 {[%emt 0:00:30]} Ra8 {[%emt 0:00:30]} 27. Bxc4 {[%emt 0:00:30]} dxc4 {[%emt 0:00:00]} 28. Rxd7 {[%emt 0:00:00]} Bxd7 {[%emt 0:00:00]} 29. Rxd7 {[%emt 0:00:00]} a4 {[%emt 0:00:00]} 30. Rd1 {[%emt 0:01:30]} a3 {[%emt 0:02:00]} 31. Kf2 {[%emt 0:00:00]} a2 {[%emt 0:00:00]} 32. Ra1 {[%emt 0:00:00]} Ra3 {[%emt 0:01:00]} 33. Ke2 {[%emt 0:01:30]} Kxb5 {[%emt 0:00:30]} 34. Kd2 {[%emt 0:00:30]} Kc5 {[%emt 0:00:30]} 1/2-1/2

[Event "Catalan Youth Championship 2024"]
[Site "Cambrils"]
[Date "2024.03.25"]
[Round "4.24"]
[White "Navajas Alvarez, Josep"]
[Black "Jurado Coderch, Heribert"]
[Result "0-1"]
[ECO "E08"]
[WhiteElo "1989"]
[BlackElo "1960"]
[Annotator "NA RC"]
[PlyCount "59"]
[EventDate "2024.03.13"]
[EventType "swiss"]
[EventCountry "ESP"]
[SourceTitle "playchess.com"]
[Source "ChessBase"]
[SourceQuality "1"]
[TimeControl "5400+30"]

1. d4 {[%emt 0:00:05]} d5 {[%emt 0:00:15]} 2. c4 {[%emt 0:00:11]} e6 {[%emt 0:00:20]} 3. Nf3 {[%emt 0:00:17]} Nf6 {[%emt 0:00:09]} 4. g3 {[%emt 0:00:08]} Bb4+ {[%emt 0:00:22]} 5. Bd2 {[%emt 0:00:30]} Be7 {[%emt 0:00:08]} 6. Bg2 {[%emt 0:00:28]} c6 {[%emt 0:00:36]} 7. Qc2 {[%emt 0:01:21]} O-O {[%emt 0:00:10]} 8. O-O {[%emt 0:00:08]} Nbd7 {[%emt 1:32:30]} 9. Bf4 {[%emt 0:02:54]} Ne4 {[%emt 0:00:00]} 10. Nbd2 {[%emt 0:02:48]} (10. h4 $14 {kam in Betracht.}) 10... f5 {[%emt 0:00:00]} 11. Ne5 {[%emt 0:04:09] E08: Closed Catalan: Main Line: 7 Qc2.} g5 {[%emt 0:00:00]} 12. Nxd7 {[%emt 0:03:25]} Bxd7 {[%emt 0:00:00]} 13. Be5 {[%emt 0:00:19]} Be8 {[%emt 0:02:30]} (13... Nd6 $11) 14. b3 {[%emt 0:11:41]} (14. Nxe4 $14 dxe4 15. f3) 14... Bg6 {[%emt 0:00:00]} (14... Nd6 $142) 15. f3 {[%emt 0:03:31]} Nxd2 {[%emt 0:00:00]} 16. Qxd2 {[%emt 0:00:12]} Bf6 {[%emt 0:00:00]} 17. Qe3 {[%emt 0:12:27]} Bxe5 {[%emt 0:00:00]} 18. Qxe5 {[%emt 0:01:16]} Qf6 {[%emt 0:00:00]} 19. Qxf6 {[%emt 0:14:58]} Rxf6 {[%emt 0:00:00]} 20. e3 {[%emt 0:01:37]} Rd8 {[%emt 0:00:00]} 21. Rac1 {[%emt 0:03:10]} f4 {[%emt 0:00:00]} 22. Kf2 {[%emt 0:13:40]} c5 {[%emt 0:00:00]} 23. exf4 {[%emt 0:01:55]} gxf4 {[%emt 0:00:00]} 24. Rfd1 {[%emt 0:01:10]} dxc4 {[%emt 0:00:00]} 25. dxc5 {[%emt 0:02:58]} Rxd1 {[%emt 0:00:00]} 26. Rxd1 {[%emt 0:00:10]} c3 {[%emt 0:00:00]} 27. Ke2 {[%emt 0:00:17]} Rf5 {[%emt 0:00:00]} 28. b4 {[%emt 0:06:19]} Re5+ {[%emt 0:00:00]} 29. Kf2 {[%emt 0:01:10]} Rd5 {[%emt 0:00:00]} 30. Rxd5 $2 {[%emt 0:03:41]} (30. Ke1 $17) 0-1